[Event "Late-Titled-Tuesday-Blitz-May-28-2024"]
[Site "Chess.com"]
[Date "2024.05.28"]
[Round "9"]
[White "Timurist"]
[Black "StoreySniper"]
[Result "0-1"]
[WhiteElo "2410"]
[BlackElo "2542"]
[TimeControl "180+1"]
[EndTime "15:42:26 PDT"]
[Termination "StoreySniper won by resignation"]

1. e4 {[%clk 0:02:59.9]} 1... g6 {[%clk 0:03:00.3]} 2. d4 {[%clk 0:02:59.7]}
2... Bg7 {[%clk 0:03:01]} 3. Nc3 {[%clk 0:03:00.3]} 3... c5 {[%clk 0:03:01.5]}
4. Be3 {[%clk 0:03:00.6]} 4... Qa5 {[%clk 0:03:00.2]} 5. Nf3 {[%clk 0:02:47.6]}
5... Nf6 {[%clk 0:03:00]} 6. Qd3 {[%clk 0:02:33.3]} 6... Nc6 {[%clk 0:02:53.3]}
7. a3 {[%clk 0:02:28]} 7... d5 {[%clk 0:02:34.4]} 8. e5 {[%clk 0:01:37.6]} 8...
Ne4 {[%clk 0:02:17.2]} 9. b4 {[%clk 0:01:34]} 9... Nxb4 {[%clk 0:02:12]} 10.
axb4 {[%clk 0:01:23.4]} 10... Qxa1+ {[%clk 0:02:11.5]} 11. Nd1 {[%clk
0:01:22.1]} 11... c4 {[%clk 0:01:58]} 12. Qe2 {[%clk 0:01:14.5]} 12... Bd7
{[%clk 0:01:30.4]} 13. Nd2 {[%clk 0:01:02.9]} 13... Nc3 {[%clk 0:01:23.4]} 14.
Qf3 {[%clk 0:01:01]} 14... Bf5 {[%clk 0:00:56]} 15. Be2 {[%clk 0:00:47.9]} 15...
Bxc2 {[%clk 0:00:51.9]} 16. O-O {[%clk 0:00:48.1]} 16... Nxe2+ {[%clk
0:00:49.3]} 17. Qxe2 {[%clk 0:00:48]} 17... Bd3 {[%clk 0:00:42.6]} 0-1

[Event "Late-Titled-Tuesday-Blitz-May-28-2024"]
[Site "Chess.com"]
[Date "2024.05.28"]
[Round "9"]
[White "ZachHKL"]
[Black "Love7Unicorn"]
[Result "0-1"]
[WhiteElo "2380"]
[BlackElo "2536"]
[TimeControl "180+1"]
[EndTime "15:42:28 PDT"]
[Termination "Love7Unicorn won by checkmate"]

1. e4 {[%clk 0:03:00.9]} 1... c5 {[%clk 0:02:47.8]} 2. Nf3 {[%clk 0:03:00.3]}
2... d6 {[%clk 0:02:47.1]} 3. d4 {[%clk 0:03:00.4]} 3... cxd4 {[%clk 0:02:48]}
4. Nxd4 {[%clk 0:03:00.6]} 4... Nf6 {[%clk 0:02:48.5]} 5. Nc3 {[%clk 0:03:00.9]}
5... g6 {[%clk 0:02:49.1]} 6. Be3 {[%clk 0:03:00.8]} 6... Bg7 {[%clk 0:02:49.6]}
7. f3 {[%clk 0:03:01.2]} 7... O-O {[%clk 0:02:49.5]} 8. Qd2 {[%clk 0:03:01.7]}
8... Nc6 {[%clk 0:02:49.3]} 9. Bc4 {[%clk 0:03:01.8]} 9... Bd7 {[%clk
0:02:48.9]} 10. O-O-O {[%clk 0:03:02.3]} 10... Rc8 {[%clk 0:02:48.7]} 11. Bb3
{[%clk 0:03:02.7]} 11... Nxd4 {[%clk 0:02:49]} 12. Bxd4 {[%clk 0:03:02.5]} 12...
b5 {[%clk 0:02:49.5]} 13. Kb1 {[%clk 0:03:00.3]} 13... a5 {[%clk 0:02:49.2]} 14.
a3 {[%clk 0:02:59.2]} 14... b4 {[%clk 0:02:39.9]} 15. axb4 {[%clk 0:02:56.4]}
15... axb4 {[%clk 0:02:40.8]} 16. Nd5 {[%clk 0:02:55.4]} 16... Nxd5 {[%clk
0:02:40.2]} 17. Bxg7 {[%clk 0:02:53.7]} 17... Kxg7 {[%clk 0:01:58.6]} 18. exd5
{[%clk 0:02:51]} 18... Qa5 {[%clk 0:01:57.5]} 19. Qd4+ {[%clk 0:02:47.3]} 19...
Kg8 {[%clk 0:01:57.4]} 20. Kc1 {[%clk 0:02:40.6]} 20... Ba4 {[%clk 0:01:43]} 21.
Bc4 {[%clk 0:02:11.6]} 21... Rc5 {[%clk 0:01:13.7]} 22. b3 {[%clk 0:02:07.9]}
22... Rfc8 {[%clk 0:01:11.8]} 23. Kb2 {[%clk 0:01:59.2]} 23... Bb5 {[%clk
0:00:59.6]} 24. Ra1 {[%clk 0:01:56.7]} 24... Qc7 {[%clk 0:00:54.5]} 25. Bxb5
{[%clk 0:01:13.1]} 25... Rxc2+ {[%clk 0:00:53.5]} 26. Kb1 {[%clk 0:01:12.9]}
26... Rc1+ {[%clk 0:00:52.5]} 27. Ka2 {[%clk 0:01:09.4]} 27... Qc2+ {[%clk
0:00:51.5]} 28. Qb2 {[%clk 0:01:05.9]} 28... Qxb2+ {[%clk 0:00:51.6]} 29. Kxb2
{[%clk 0:01:05.1]} 29... R8c2# {[%clk 0:00:52.5]} 0-1

[Event "Late-Titled-Tuesday-Blitz-May-28-2024"]
[Site "Chess.com"]
[Date "2024.05.28"]
[Round "9"]
[White "brunoo2003"]
[Black "GMBenjaminFinegold"]
[Result "0-1"]
[WhiteElo "2587"]
[BlackElo "2747"]
[TimeControl "180+1"]
[EndTime "15:42:52 PDT"]
[Termination "GMBenjaminFinegold won by resignation"]

1. e4 {[%clk 0:02:53.4]} 1... c5 {[%clk 0:02:59.9]} 2. Nf3 {[%clk 0:02:53.4]}
2... Nc6 {[%clk 0:03:00.5]} 3. d4 {[%clk 0:02:54]} 3... cxd4 {[%clk 0:03:01.4]}
4. Nxd4 {[%clk 0:02:54.5]} 4... Nf6 {[%clk 0:03:02.1]} 5. Nc3 {[%clk 0:02:54.8]}
5... d6 {[%clk 0:03:02.6]} 6. Bg5 {[%clk 0:02:53.9]} 6... e6 {[%clk 0:03:02.8]}
7. Qd2 {[%clk 0:02:54.5]} 7... a6 {[%clk 0:03:03]} 8. O-O-O {[%clk 0:02:54.1]}
8... h6 {[%clk 0:03:03.4]} 9. Be3 {[%clk 0:02:53.7]} 9... Ng4 {[%clk 0:03:03.3]}
10. Nxc6 {[%clk 0:02:51]} 10... bxc6 {[%clk 0:03:04.2]} 11. Bf4 {[%clk
0:02:41.7]} 11... d5 {[%clk 0:02:47.7]} 12. f3 {[%clk 0:02:22.4]} 12... Nf6
{[%clk 0:02:46.8]} 13. g4 {[%clk 0:02:00.1]} 13... Bb4 {[%clk 0:02:40.1]} 14. a3
{[%clk 0:01:54.5]} 14... Ba5 {[%clk 0:02:39.9]} 15. Qe3 {[%clk 0:01:42.6]} 15...
O-O {[%clk 0:02:32.9]} 16. g5 {[%clk 0:01:31.7]} 16... Nh5 {[%clk 0:02:22.1]}
17. gxh6 {[%clk 0:01:27.2]} 17... g6 {[%clk 0:02:22.2]} 18. Bg5 {[%clk
0:01:06.2]} 18... Qb6 {[%clk 0:02:18.2]} 19. Bh3 {[%clk 0:00:50.9]} 19... Qxe3+
{[%clk 0:02:02.3]} 20. Bxe3 {[%clk 0:00:51.8]} 20... d4 {[%clk 0:01:51.7]} 21.
Bxd4 {[%clk 0:00:38.3]} 21... e5 {[%clk 0:01:51.9]} 22. Bc5 {[%clk 0:00:23.8]}
22... Bxh3 {[%clk 0:01:50]} 23. Bxf8 {[%clk 0:00:24.2]} 23... Rxf8 {[%clk
0:01:47.9]} 24. Rhg1 {[%clk 0:00:21.7]} 24... Nf4 {[%clk 0:01:41.9]} 25. Rd6
{[%clk 0:00:11.9]} 25... Bxc3 {[%clk 0:01:40.1]} 26. Kb1 {[%clk 0:00:08.2]}
26... Bd4 {[%clk 0:01:39.4]} 27. Rd1 {[%clk 0:00:07.1]} 27... Bg2 {[%clk
0:01:34.6]} 28. Rxc6 {[%clk 0:00:06.4]} 28... Bxf3 {[%clk 0:01:34.8]} 29. Re1
{[%clk 0:00:06.1]} 29... Be2 {[%clk 0:01:32.8]} 30. c3 {[%clk 0:00:05.1]} 30...
Bf2 {[%clk 0:01:32]} 31. Rh1 {[%clk 0:00:04]} 31... Bd3+ {[%clk 0:01:32.2]} 32.
Ka1 {[%clk 0:00:02.5]} 32... Bxe4 {[%clk 0:01:31.6]} 0-1

[Event "Late-Titled-Tuesday-Blitz-May-28-2024"]
[Site "Chess.com"]
[Date "2024.05.28"]
[Round "9"]
[White "dozer80"]
[Black "Abduzhaparov"]
[Result "0-1"]
[WhiteElo "2681"]
[BlackElo "2522"]
[TimeControl "180+1"]
[EndTime "15:43:09 PDT"]
[Termination "Abduzhaparov won by resignation"]

1. d4 {[%clk 0:03:00.9]} 1... d6 {[%clk 0:03:00.9]} 2. e4 {[%clk 0:03:00.4]}
2... Nf6 {[%clk 0:03:00.7]} 3. Nc3 {[%clk 0:03:00.8]} 3... e5 {[%clk 0:03:01.6]}
4. Bg5 {[%clk 0:02:59.8]} 4... Be7 {[%clk 0:02:59.9]} 5. dxe5 {[%clk 0:02:57.9]}
5... dxe5 {[%clk 0:02:59.5]} 6. Qxd8+ {[%clk 0:02:57.6]} 6... Bxd8 {[%clk
0:03:00.4]} 7. O-O-O {[%clk 0:02:57.7]} 7... c6 {[%clk 0:02:59.1]} 8. f3 {[%clk
0:02:56.6]} 8... O-O {[%clk 0:02:54.5]} 9. Nge2 {[%clk 0:02:39.2]} 9... Be6
{[%clk 0:02:50.5]} 10. g3 {[%clk 0:02:31.6]} 10... h6 {[%clk 0:02:47.6]} 11. Be3
{[%clk 0:02:31.3]} 11... Be7 {[%clk 0:02:43.8]} 12. h4 {[%clk 0:02:31]} 12...
Nbd7 {[%clk 0:02:42.1]} 13. Bh3 {[%clk 0:02:30.9]} 13... Bxh3 {[%clk 0:02:37.7]}
14. Rxh3 {[%clk 0:02:31.8]} 14... b5 {[%clk 0:02:31.7]} 15. g4 {[%clk
0:02:24.3]} 15... Bc5 {[%clk 0:02:31.6]} 16. Bd2 {[%clk 0:02:23.5]} 16... Ne8
{[%clk 0:01:53.8]} 17. Bxh6 {[%clk 0:02:09.6]} 17... gxh6 {[%clk 0:01:49.8]} 18.
Rxd7 {[%clk 0:02:09]} 18... Nf6 {[%clk 0:01:48.6]} 19. Rd3 {[%clk 0:02:07.8]}
19... a5 {[%clk 0:01:44.6]} 20. g5 {[%clk 0:02:06.7]} 20... Nh5 {[%clk
0:01:44.6]} 21. gxh6 {[%clk 0:02:03.4]} 21... Kh7 {[%clk 0:01:44.6]} 22. Rh1
{[%clk 0:01:57.3]} 22... a4 {[%clk 0:01:42.1]} 23. Nd1 {[%clk 0:01:46.4]} 23...
b4 {[%clk 0:01:33.3]} 24. Ne3 {[%clk 0:01:45.9]} 24... Rad8 {[%clk 0:01:28.6]}
25. Nf5 {[%clk 0:01:42]} 25... Rxd3 {[%clk 0:01:21.2]} 26. cxd3 {[%clk
0:01:42.9]} 26... Rg8 {[%clk 0:01:20.7]} 27. Kd2 {[%clk 0:01:40.3]} 27... Rg2
{[%clk 0:01:16.1]} 28. Rc1 {[%clk 0:01:39.6]} 28... Nf4 {[%clk 0:00:47.7]} 29.
Re1 {[%clk 0:00:40.5]} 29... Bf2 {[%clk 0:00:46.5]} 30. Nxf4 {[%clk 0:00:39.9]}
30... Bxe1+ {[%clk 0:00:43.7]} 31. Kxe1 {[%clk 0:00:39.1]} 31... exf4 {[%clk
0:00:43.9]} 0-1

[Event "Late-Titled-Tuesday-Blitz-May-28-2024"]
[Site "Chess.com"]
[Date "2024.05.28"]
[Round "9"]
[White "maurovargas01"]
[Black "KebabJangles"]
[Result "0-1"]
[WhiteElo "1926"]
[BlackElo "2276"]
[TimeControl "180+1"]
[EndTime "15:43:12 PDT"]
[Termination "KebabJangles won on time"]

1. e4 {[%clk 0:02:29.4]} 1... c5 {[%clk 0:02:39]} 2. Nc3 {[%clk 0:02:23.8]} 2...
e6 {[%clk 0:02:37.6]} 3. f4 {[%clk 0:02:24.7]} 3... d5 {[%clk 0:02:29.4]} 4. Nf3
{[%clk 0:02:25.6]} 4... d4 {[%clk 0:02:29.7]} 5. Ne2 {[%clk 0:02:24.2]} 5... Nc6
{[%clk 0:02:28.5]} 6. d3 {[%clk 0:02:24.4]} 6... f5 {[%clk 0:02:27.7]} 7. exf5
{[%clk 0:02:18.7]} 7... exf5 {[%clk 0:02:28.6]} 8. g3 {[%clk 0:02:17]} 8... g6
{[%clk 0:02:28.1]} 9. Bg2 {[%clk 0:02:17.1]} 9... Bg7 {[%clk 0:02:28.7]} 10. O-O
{[%clk 0:02:16.7]} 10... Nge7 {[%clk 0:02:29.3]} 11. Re1 {[%clk 0:02:17.1]}
11... O-O {[%clk 0:02:29.9]} 12. Ng5 {[%clk 0:02:15.6]} 12... h6 {[%clk
0:02:27.7]} 13. Nf3 {[%clk 0:02:10.7]} 13... Nd5 {[%clk 0:02:25.8]} 14. Bd2
{[%clk 0:02:01.5]} 14... Re8 {[%clk 0:02:25.2]} 15. Nc1 {[%clk 0:01:59.2]} 15...
Be6 {[%clk 0:02:24.5]} 16. Nb3 {[%clk 0:01:57.9]} 16... Qd6 {[%clk 0:02:22.4]}
17. Re2 {[%clk 0:01:46]} 17... Bf7 {[%clk 0:02:21.1]} 18. Qf1 {[%clk 0:01:43]}
18... Rxe2 {[%clk 0:02:19.5]} 19. Qxe2 {[%clk 0:01:42.8]} 19... Re8 {[%clk
0:02:20.1]} 20. Qf2 {[%clk 0:01:42.7]} 20... Ne3 {[%clk 0:02:20.7]} 21. Bxe3
{[%clk 0:01:37.7]} 21... Rxe3 {[%clk 0:02:21.6]} 22. Re1 {[%clk 0:01:35.6]}
22... Qe7 {[%clk 0:02:20.9]} 23. Rxe3 {[%clk 0:01:33.6]} 23... dxe3 {[%clk
0:02:21.8]} 24. Qe2 {[%clk 0:01:29]} 24... Bxb2 {[%clk 0:02:20.6]} 25. c4 {[%clk
0:01:04.6]} 25... Bd4 {[%clk 0:02:15.1]} 26. Nbxd4 {[%clk 0:01:01.2]} 26... cxd4
{[%clk 0:02:15]} 27. Kf1 {[%clk 0:00:51.2]} 27... Qb4 {[%clk 0:02:13.8]} 28. Qc2
{[%clk 0:00:46.8]} 28... a5 {[%clk 0:02:12.5]} 29. Ke2 {[%clk 0:00:46.5]} 29...
a4 {[%clk 0:02:12.3]} 30. Ne5 {[%clk 0:00:39]} 30... Be8 {[%clk 0:02:10.8]} 31.
Bd5+ {[%clk 0:00:31.5]} 31... Kg7 {[%clk 0:02:09.4]} 32. Nf3 {[%clk 0:00:28.4]}
32... Qb6 {[%clk 0:01:42.3]} 33. c5 {[%clk 0:00:22.4]} 33... Qb4 {[%clk
0:01:41.2]} 34. Bxc6 {[%clk 0:00:20]} 34... Bxc6 {[%clk 0:01:40.4]} 35. Ne5
{[%clk 0:00:14.9]} 35... Bd5 {[%clk 0:01:40.2]} 36. c6 {[%clk 0:00:10.6]} 36...
bxc6 {[%clk 0:01:40.1]} 37. Nxc6 {[%clk 0:00:10.1]} 37... Qc3 {[%clk 0:01:36.6]}
38. Qxc3 {[%clk 0:00:01.1]} 38... dxc3 {[%clk 0:01:37.5]} 39. Nd4 {[%clk
0:00:01.2]} 39... Bxa2 {[%clk 0:01:37.3]} 0-1

[Event "Late-Titled-Tuesday-Blitz-May-28-2024"]
[Site "Chess.com"]
[Date "2024.05.28"]
[Round "9"]
[White "nindjaxx8"]
[Black "DanylaBagrov"]
[Result "1-0"]
[WhiteElo "2626"]
[BlackElo "2479"]
[TimeControl "180+1"]
[EndTime "15:43:21 PDT"]
[Termination "nindjaxx8 won on time"]

1. d4 {[%clk 0:02:48.6]} 1... d6 {[%clk 0:02:55]} 2. c4 {[%clk 0:02:48.4]} 2...
e5 {[%clk 0:02:54.6]} 3. e3 {[%clk 0:02:48.2]} 3... Nf6 {[%clk 0:02:54.2]} 4.
Nc3 {[%clk 0:02:48.1]} 4... Nbd7 {[%clk 0:02:54.7]} 5. Nf3 {[%clk 0:02:47.7]}
5... Be7 {[%clk 0:02:55]} 6. Be2 {[%clk 0:02:47.5]} 6... O-O {[%clk 0:02:55.5]}
7. O-O {[%clk 0:02:47.4]} 7... c6 {[%clk 0:02:56]} 8. dxe5 {[%clk 0:02:47.3]}
8... dxe5 {[%clk 0:02:56.1]} 9. Qc2 {[%clk 0:02:48]} 9... Qc7 {[%clk 0:02:54.2]}
10. b3 {[%clk 0:02:47.7]} 10... a5 {[%clk 0:02:53.8]} 11. Bb2 {[%clk 0:02:47.5]}
11... Nc5 {[%clk 0:02:52.3]} 12. Rad1 {[%clk 0:02:47.8]} 12... Bg4 {[%clk
0:02:50.3]} 13. h3 {[%clk 0:02:47.2]} 13... Bh5 {[%clk 0:02:49.8]} 14. Nh4
{[%clk 0:02:42]} 14... a4 {[%clk 0:02:24.5]} 15. b4 {[%clk 0:02:27.6]} 15... Ne6
{[%clk 0:02:22]} 16. a3 {[%clk 0:02:26.5]} 16... Bg6 {[%clk 0:02:16.1]} 17. Nxg6
{[%clk 0:02:25.4]} 17... hxg6 {[%clk 0:02:15.8]} 18. c5 {[%clk 0:02:14.6]} 18...
g5 {[%clk 0:01:04.5]} 19. Nxa4 {[%clk 0:01:55]} 19... Nd5 {[%clk 0:00:57]} 20.
Nc3 {[%clk 0:01:52.5]} 20... Rfd8 {[%clk 0:00:49.7]} 21. Bf3 {[%clk 0:01:47.9]}
21... b6 {[%clk 0:00:25.3]} 22. Nxd5 {[%clk 0:01:44.1]} 22... cxd5 {[%clk
0:00:25.2]} 23. Bxd5 {[%clk 0:01:44.7]} 23... Rac8 {[%clk 0:00:21.9]} 24. Qf5
{[%clk 0:01:41]} 24... Rxd5 {[%clk 0:00:17.1]} 25. Rxd5 {[%clk 0:01:39.8]} 25...
bxc5 {[%clk 0:00:15.6]} 26. bxc5 {[%clk 0:01:34]} 26... Qb7 {[%clk 0:00:12.5]}
27. Rxe5 {[%clk 0:01:29.4]} 27... Bf6 {[%clk 0:00:09.8]} 28. Rxe6 {[%clk
0:01:25]} 28... fxe6 {[%clk 0:00:09.8]} 29. Qxe6+ {[%clk 0:01:25.9]} 29... Kh7
{[%clk 0:00:09.4]} 30. Bxf6 {[%clk 0:01:25.5]} 30... gxf6 {[%clk 0:00:08.7]} 31.
Rd1 {[%clk 0:01:26]} 31... Rc7 {[%clk 0:00:08.4]} 32. Rd8 {[%clk 0:01:22.7]}
32... Rf7 {[%clk 0:00:07.9]} 33. c6 {[%clk 0:01:18.9]} 33... Qb1+ {[%clk
0:00:06.3]} 34. Kh2 {[%clk 0:01:18.9]} 34... Kg6 {[%clk 0:00:02.8]} 35. Rg8+
{[%clk 0:01:18.6]} 35... Rg7 {[%clk 0:00:03.2]} 36. Rxg7+ {[%clk 0:01:18.4]}
36... Kxg7 {[%clk 0:00:04.1]} 37. c7 {[%clk 0:01:19]} 1-0

[Event "Late-Titled-Tuesday-Blitz-May-28-2024"]
[Site "Chess.com"]
[Date "2024.05.28"]
[Round "9"]
[White "McCarthyStone"]
[Black "Arteler"]
[Result "1-0"]
[WhiteElo "2472"]
[BlackElo "2203"]
[TimeControl "180+1"]
[EndTime "15:43:29 PDT"]
[Termination "McCarthyStone won by checkmate"]

1. b3 {[%clk 0:02:49.6]} 1... Nf6 {[%clk 0:02:56.4]} 2. Bb2 {[%clk 0:02:50.5]}
2... g6 {[%clk 0:02:04.1]} 3. Bxf6 {[%clk 0:02:49.4]} 3... exf6 {[%clk 0:02:03]}
4. c4 {[%clk 0:02:50.1]} 4... Bg7 {[%clk 0:02:02.1]} 5. Nc3 {[%clk 0:02:50.3]}
5... O-O {[%clk 0:02:02.2]} 6. g3 {[%clk 0:02:51]} 6... Nc6 {[%clk 0:01:59.3]}
7. Bg2 {[%clk 0:02:51.6]} 7... b6 {[%clk 0:01:58.5]} 8. e3 {[%clk 0:02:50.5]}
8... Bb7 {[%clk 0:01:58.3]} 9. Nge2 {[%clk 0:02:51.1]} 9... Na5 {[%clk
0:01:57.6]} 10. Nd5 {[%clk 0:02:47.4]} 10... f5 {[%clk 0:01:50.3]} 11. d4 {[%clk
0:02:44.7]} 11... c5 {[%clk 0:01:45.3]} 12. O-O {[%clk 0:02:42.7]} 12... cxd4
{[%clk 0:01:42]} 13. Nxd4 {[%clk 0:02:42.8]} 13... Nc6 {[%clk 0:01:30.3]} 14.
Nb5 {[%clk 0:02:34.8]} 14... a6 {[%clk 0:01:11.9]} 15. Nd6 {[%clk 0:02:33.6]}
15... Qb8 {[%clk 0:01:02.9]} 16. Nxb6 {[%clk 0:01:41.1]} 16... Bxa1 {[%clk
0:00:48.4]} 17. Qxa1 {[%clk 0:01:17]} 17... Qxd6 {[%clk 0:00:45.1]} 18. Rd1
{[%clk 0:01:17.2]} 18... Qb4 {[%clk 0:00:32.6]} 19. Nd5 {[%clk 0:00:52.2]} 19...
Qa5 {[%clk 0:00:16.1]} 20. Nf6+ {[%clk 0:00:49.9]} 20... Kg7 {[%clk 0:00:16]}
21. Nh5+ {[%clk 0:00:38.6]} 21... Kh6 {[%clk 0:00:11.7]} 22. Qg7+ {[%clk
0:00:37.8]} 22... Kxh5 {[%clk 0:00:11.5]} 23. Bf3+ {[%clk 0:00:34.6]} 23... Kg5
{[%clk 0:00:10.8]} 24. h4# {[%clk 0:00:35.1]} 1-0

[Event "Late-Titled-Tuesday-Blitz-May-28-2024"]
[Site "Chess.com"]
[Date "2024.05.28"]
[Round "9"]
[White "robertoalejandro10"]
[Black "Onthequiet"]
[Result "0-1"]
[WhiteElo "2472"]
[BlackElo "2448"]
[TimeControl "180+1"]
[EndTime "15:43:36 PDT"]
[Termination "Onthequiet won by resignation"]

1. Nf3 {[%clk 0:03:00.9]} 1... d5 {[%clk 0:02:59.5]} 2. c4 {[%clk 0:02:59.5]}
2... e6 {[%clk 0:02:59.1]} 3. g3 {[%clk 0:02:58.9]} 3... Nf6 {[%clk 0:02:58.9]}
4. b3 {[%clk 0:02:58.5]} 4... Be7 {[%clk 0:02:59.2]} 5. Bg2 {[%clk 0:02:58.3]}
5... O-O {[%clk 0:02:59.7]} 6. O-O {[%clk 0:02:58.5]} 6... b6 {[%clk 0:03:00.2]}
7. Bb2 {[%clk 0:02:58.5]} 7... Bb7 {[%clk 0:03:00.5]} 8. e3 {[%clk 0:02:59.1]}
8... Nbd7 {[%clk 0:03:00.6]} 9. Qe2 {[%clk 0:02:59]} 9... dxc4 {[%clk 0:03:00]}
10. bxc4 {[%clk 0:02:58.1]} 10... c5 {[%clk 0:03:00.1]} 11. Rd1 {[%clk
0:02:58.4]} 11... Qc7 {[%clk 0:02:58.3]} 12. Nc3 {[%clk 0:02:58.8]} 12... a6
{[%clk 0:02:58.4]} 13. Rac1 {[%clk 0:02:59.3]} 13... Rac8 {[%clk 0:02:57.8]} 14.
h4 {[%clk 0:02:50.4]} 14... h6 {[%clk 0:02:56.1]} 15. Nb1 {[%clk 0:02:48.6]}
15... Qb8 {[%clk 0:02:53.7]} 16. d4 {[%clk 0:02:48.3]} 16... cxd4 {[%clk
0:02:52.9]} 17. exd4 {[%clk 0:02:49.2]} 17... Rfe8 {[%clk 0:02:53.2]} 18. Nc3
{[%clk 0:02:48.7]} 18... Rc7 {[%clk 0:02:40.6]} 19. d5 {[%clk 0:02:11.7]} 19...
exd5 {[%clk 0:02:34.7]} 20. Nxd5 {[%clk 0:02:10.1]} 20... Nxd5 {[%clk
0:02:32.5]} 21. cxd5 {[%clk 0:02:08.4]} 21... Rxc1 {[%clk 0:02:32.5]} 22. Bxc1
{[%clk 0:02:01.7]} 22... Bc5 {[%clk 0:02:28.6]} 23. Be3 {[%clk 0:00:58]} 23...
Bxe3 {[%clk 0:02:25.3]} 24. fxe3 {[%clk 0:00:57.4]} 24... Qxg3 {[%clk
0:02:25.4]} 25. Qf2 {[%clk 0:00:58.1]} 25... Qxf2+ {[%clk 0:02:15.8]} 26. Kxf2
{[%clk 0:00:59]} 26... Nf6 {[%clk 0:02:16.4]} 27. d6 {[%clk 0:00:31.3]} 27...
Ng4+ {[%clk 0:02:08.8]} 28. Kg3 {[%clk 0:00:30.8]} 28... Nxe3 {[%clk 0:02:08.7]}
29. Rd2 {[%clk 0:00:28.3]} 29... Rd8 {[%clk 0:01:48.3]} 30. d7 {[%clk
0:00:14.9]} 30... Nxg2 {[%clk 0:01:39.8]} 31. Kxg2 {[%clk 0:00:14.5]} 31... Kf8
{[%clk 0:01:38.8]} 32. Kg3 {[%clk 0:00:14.5]} 32... Bxf3 {[%clk 0:01:39.1]} 33.
Kxf3 {[%clk 0:00:14.5]} 33... Ke7 {[%clk 0:01:40]} 34. Rb2 {[%clk 0:00:10.9]}
34... b5 {[%clk 0:01:39.8]} 35. a4 {[%clk 0:00:11.4]} 35... bxa4 {[%clk
0:01:39.3]} 36. Rb6 {[%clk 0:00:12]} 36... Rxd7 {[%clk 0:01:38.7]} 37. Rxa6
{[%clk 0:00:12.7]} 37... Rd4 {[%clk 0:01:37.6]} 38. Kg3 {[%clk 0:00:13.3]} 38...
h5 {[%clk 0:01:36.4]} 39. Kh3 {[%clk 0:00:13.3]} 39... Rg4 {[%clk 0:01:34]} 40.
Ra5 {[%clk 0:00:13]} 40... g6 {[%clk 0:01:32.9]} 41. Ra7+ {[%clk 0:00:12.7]}
41... Ke6 {[%clk 0:01:32.9]} 42. Ra6+ {[%clk 0:00:13.6]} 42... Kd5 {[%clk
0:01:30]} 43. Ra5+ {[%clk 0:00:12.7]} 43... Kc6 {[%clk 0:01:28.2]} 44. Ra7
{[%clk 0:00:13.6]} 44... f5 {[%clk 0:01:26.4]} 45. Ra8 {[%clk 0:00:10.5]} 45...
Kb5 {[%clk 0:01:24.7]} 46. Rb8+ {[%clk 0:00:09.5]} 46... Kc4 {[%clk 0:01:24.8]}
47. Rc8+ {[%clk 0:00:09.4]} 47... Kb3 {[%clk 0:01:24.6]} 48. Rb8+ {[%clk
0:00:09.9]} 48... Rb4 {[%clk 0:01:24.6]} 0-1

[Event "Late-Titled-Tuesday-Blitz-May-28-2024"]
[Site "Chess.com"]
[Date "2024.05.28"]
[Round "9"]
[White "simaopdias"]
[Black "northridgehawk"]
[Result "0-1"]
[WhiteElo "2241"]
[BlackElo "2347"]
[TimeControl "180+1"]
[EndTime "15:43:42 PDT"]
[Termination "northridgehawk won by resignation"]

1. e4 {[%clk 0:03:00.2]} 1... e5 {[%clk 0:02:58.4]} 2. Nf3 {[%clk 0:03:00.6]}
2... Nc6 {[%clk 0:02:59.3]} 3. Bc4 {[%clk 0:03:01.1]} 3... Nf6 {[%clk
0:02:58.4]} 4. d3 {[%clk 0:03:01.5]} 4... Bc5 {[%clk 0:02:58.9]} 5. c3 {[%clk
0:03:02.1]} 5... d6 {[%clk 0:02:59.3]} 6. Nbd2 {[%clk 0:03:02.7]} 6... a6 {[%clk
0:02:59.5]} 7. Bb3 {[%clk 0:03:03]} 7... Ba7 {[%clk 0:03:00.4]} 8. O-O {[%clk
0:03:03.2]} 8... h6 {[%clk 0:03:00.4]} 9. Re1 {[%clk 0:03:03.7]} 9... O-O {[%clk
0:03:00.2]} 10. Nf1 {[%clk 0:03:03.3]} 10... Re8 {[%clk 0:03:00.7]} 11. h3
{[%clk 0:03:02.3]} 11... Be6 {[%clk 0:03:01.6]} 12. N3h2 {[%clk 0:03:00.5]}
12... d5 {[%clk 0:03:02.3]} 13. Qf3 {[%clk 0:03:00.5]} 13... d4 {[%clk
0:03:01.9]} 14. Ng4 {[%clk 0:02:53.5]} 14... Nxg4 {[%clk 0:03:01.8]} 15. hxg4
{[%clk 0:02:54.1]} 15... Bxb3 {[%clk 0:03:01.5]} 16. axb3 {[%clk 0:02:53.7]}
16... Qd6 {[%clk 0:03:00.1]} 17. g5 {[%clk 0:02:46.5]} 17... hxg5 {[%clk
0:02:59.4]} 18. Bxg5 {[%clk 0:02:46.4]} 18... Qe6 {[%clk 0:02:57.3]} 19. Nd2
{[%clk 0:02:42.1]} 19... Rad8 {[%clk 0:02:55.9]} 20. c4 {[%clk 0:02:29.5]} 20...
f6 {[%clk 0:02:52.6]} 21. Bh4 {[%clk 0:02:28.8]} 21... Nb4 {[%clk 0:02:50.9]}
22. Rec1 {[%clk 0:02:24.9]} 22... g5 {[%clk 0:02:49.9]} 23. Bg3 {[%clk
0:02:24.9]} 23... Kg7 {[%clk 0:02:50.2]} 24. Ra4 {[%clk 0:02:21]} 24... Bc5
{[%clk 0:02:49.1]} 25. Nf1 {[%clk 0:02:18.8]} 25... Rh8 {[%clk 0:02:47.1]} 26.
Bh2 {[%clk 0:02:16.2]} 26... Rh4 {[%clk 0:02:45.4]} 27. Bg3 {[%clk 0:01:43.1]}
27... Rh6 {[%clk 0:02:43.8]} 28. Nh2 {[%clk 0:01:43.6]} 28... Rdh8 {[%clk
0:02:43.1]} 29. Rd1 {[%clk 0:01:37.8]} 29... Kf7 {[%clk 0:02:35.8]} 30. Qf5
{[%clk 0:01:25.7]} 30... Qxf5 {[%clk 0:02:30.9]} 31. exf5 {[%clk 0:01:26.6]}
31... Ke7 {[%clk 0:02:25.8]} 32. f3 {[%clk 0:01:26.9]} 32... Kd6 {[%clk
0:02:25.3]} 33. Ra5 {[%clk 0:01:25]} 33... b6 {[%clk 0:02:24.8]} 34. Raa1 {[%clk
0:01:21.8]} 34... Nc2 {[%clk 0:02:25.4]} 35. Rac1 {[%clk 0:01:19.5]} 35... Ne3
{[%clk 0:02:25.4]} 36. Re1 {[%clk 0:01:19.9]} 36... Nxf5 {[%clk 0:02:25.4]} 37.
Ng4 {[%clk 0:01:11]} 37... Nxg3 {[%clk 0:02:22.6]} 38. Nxh6 {[%clk 0:01:09.9]}
38... Rxh6 {[%clk 0:02:22.2]} 39. Kf2 {[%clk 0:01:10.4]} 39... Nf5 {[%clk
0:02:17.7]} 40. Rh1 {[%clk 0:01:10.5]} 40... Rg6 {[%clk 0:02:16.5]} 41. Rh8
{[%clk 0:01:09.2]} 41... Ne3 {[%clk 0:02:16.2]} 42. Rd8+ {[%clk 0:01:05.7]}
42... Ke7 {[%clk 0:02:15.5]} 43. Ra8 {[%clk 0:01:06.5]} 43... a5 {[%clk
0:02:15.3]} 44. Rh1 {[%clk 0:01:06.6]} 44... g4 {[%clk 0:02:15.3]} 45. Rh7+
{[%clk 0:01:05.9]} 45... Kd6 {[%clk 0:02:15.7]} 46. Rc8 {[%clk 0:01:01]} 46...
gxf3 {[%clk 0:02:15.9]} 47. Kxf3 {[%clk 0:01:00]} 47... Rxg2 {[%clk 0:02:06.1]}
48. Rcxc7 {[%clk 0:00:58.8]} 48... Rxb2 {[%clk 0:02:05]} 49. Rhe7 {[%clk
0:00:56.9]} 49... Ba3 {[%clk 0:01:53.4]} 50. c5+ {[%clk 0:00:49.5]} 50... Bxc5
{[%clk 0:01:49.2]} 51. Red7+ {[%clk 0:00:36.8]} 51... Ke6 {[%clk 0:01:48.1]} 52.
Rh7 {[%clk 0:00:34.7]} 52... Rxb3 {[%clk 0:01:45.1]} 53. Rc6+ {[%clk 0:00:34.5]}
53... Bd6 {[%clk 0:01:42]} 54. Rh8 {[%clk 0:00:30.1]} 54... Nd5 {[%clk
0:01:41.3]} 55. Re8+ {[%clk 0:00:29.7]} 55... Ne7 {[%clk 0:01:41.6]} 56. Rd8
{[%clk 0:00:28.9]} 56... Nxc6 {[%clk 0:01:41.6]} 0-1